bitfinex/quotes_ETHUSD_20250331
["timestamp","ask_amount","ask_price","bid_price","bid_amount"]
[1743428316671,6.85524217,1814.1,1813.9,5.5128]
[1743428316831,6.85524217,1814.1,1813.8,5.51328]
[1743428317159,3.0,1814.0,1813.7,5.51339]
[1743428317356,3.0,1813.7,1813.4,5.5142]
[1743428317661,3.0,1813.7,1813.5,5.51395]
[1743428317880,3.0,1813.7,1813.4,5.51449]
[1743428318064,3.0,1813.4,1813.1,5.51541]
[1743428318232,6.85524217,1813.2,1813.1,5.51541]
[1743428318432,1.6297,1813.6,1813.1,5.51541]
[1743428318433,3.0,1813.4,1813.1,0.15420006]
[1743428318677,3.0,1813.4,1813.2,5.51497]
[1743428318875,3.0,1813.4,1813.2,0.12725254]
[1743428319179,3.0,1813.4,1813.2,5.64212254]
[1743428319386,3.0,1813.4,1813.2,5.51487]
[1743428319685,6.68,1813.7,1813.6,5.51389]
[1743428319686,6.13,1813.7,1813.6,5.51389]
[1743428319891,3.0,1813.7,1813.6,5.51389]
[1743428320042,45.844,1814.0,1813.6,0.12833462]
[1743428320043,31.795,1814.0,1813.6,0.12833462]
[1743428320248,3.85524217,1814.4,1813.7,0.05513414]
[1743428320477,3.0,1814.3,1814.0,5.51237]
[1743428320872,5.80350639,1814.4,1814.1,0.12644896]
[1743428321079,7.7134,1814.5,1814.3,5.51176]
[1743428321293,3.85524217,1814.4,1814.2,0.12616283]
[1743428321448,3.0,1814.3,1814.1,5.51219]
[1743428321653,3.85524217,1814.4,1814.0,5.5125]
[1743428321858,3.85524217,1814.4,1814.0,5.51245]
[1743428322102,3.0,1814.3,1814.1,5.51207]
[1743428322680,3.0,1814.3,1814.0,5.51266]
[1743428322996,3.0,1814.3,1814.2,5.51207]
[1743428324579,37.933,1814.7,1814.3,5.51165]
[1743428324786,37.933,1814.7,1814.5,5.511]
[1743428325091,31.803,1814.7,1814.5,5.511]
[1743428325401,31.803,1814.7,1814.4,5.5112]
[1743428325690,3.85524217,1814.5,1814.2,5.51202]
[1743428325887,3.0,1814.4,1814.0,5.51261]
[1743428326084,3.0,1814.4,1814.1,5.51225]
[1743428326286,3.0,1814.4,1814.0,11.02507]
[1743428326490,3.0,1814.4,1813.8,1.5365]
[1743428326491,6.13,1814.5,1813.9,11.02596]
[1743428326670,6.13,1814.5,1814.4,5.51146]
[1743428326857,3.0,1814.6,1814.5,5.51089]
[1743428327053,3.0,1814.6,1814.5,11.02178]
[1743428327253,3.0,1814.6,1814.5,5.51089]
[1743428328091,0.55,1814.2,1813.6,5.51389]
[1743428328280,3.0,1813.8,1813.7,5.51359]
[1743428328669,6.13,1814.1,1813.6,0.05513498]
[1743428328874,3.0,1814.0,1813.8,5.51302]
[1743428329069,3.0,1814.0,1813.7,5.51348]
[1743428329070,3.85524217,1813.9,1813.7,5.51348]
[1743428329283,3.85524217,1813.9,1813.8,5.51328]
[1743428330321,3.0,1814.1,1813.9,5.51271]
[1743428330521,3.0,1814.1,1813.9,11.02555]
[1743428330679,3.0,1814.1,1814.0,5.51267]
[1743428331080,3.0,1814.2,1814.1,5.51217]
[1743428331311,3.85524217,1814.5,1814.2,5.51196]
[1743428331490,3.85524217,1814.5,1813.9,5.56781376]
[1743428331491,6.13,1814.4,1813.9,5.51269]
[1743428331695,3.85524217,1814.0,1813.6,5.51386]
[1743428331976,3.0,1813.9,1813.5,1.6521]
[1743428332240,3.0,1813.9,1813.7,5.51359]
[1743428332397,3.0,1813.9,1813.6,11.02774]
[1743428332578,3.0,1813.9,1813.6,5.51387]
[1743428332579,3.68552422,1813.9,1813.6,5.51387]
[1743428332781,3.85524217,1813.7,1813.5,5.51409]
[1743428332997,3.85524217,1813.7,1813.4,5.51434]
[1743428333589,3.0,1813.6,1812.9,7.04058]
[1743428333897,3.0,1813.6,1813.2,5.51491]
[1743428333898,3.85524217,1813.4,1813.2,5.51491]
[1743428334305,6.85524217,1813.4,1813.2,11.02983]
[1743428334510,6.85524217,1813.4,1813.2,5.51491]
[1743428334833,3.0,1813.3,1813.0,5.5156]
[1743428335014,3.85524217,1813.1,1812.9,5.51602]
[1743428335219,3.0,1813.0,1812.8,5.51629]
[1743428335804,3.0,1813.0,1812.6,1.6439]
[1743428336013,3.0,1813.0,1812.8,5.51612]
[1743428336327,3.0,1813.0,1812.9,5.51602]
[1743428336528,3.0,1813.0,1812.8,5.51612]
[1743428336826,3.0,1813.0,1812.9,5.51602]
[1743428337127,3.85524217,1813.4,1813.3,5.5148]
[1743428337326,6.85524217,1813.4,1813.3,5.5148]
[1743428337503,1.614,1813.6,1813.5,5.51419]
[1743428337708,6.13,1813.8,1813.6,5.51389]
[1743428338034,3.0,1813.8,1813.7,5.51338]
[1743428338528,9.98524217,1813.9,1813.8,5.51328]
[1743428338725,12.98524217,1813.9,1813.8,5.51328]
[1743428339141,3.85524217,1814.2,1814.1,5.51237]
[1743428339427,3.85524217,1814.4,1814.3,5.51176]
[1743428339593,3.0,1814.5,1814.3,5.51176]
[1743428339793,3.85524217,1814.6,1814.5,5.51116]
[1743428340031,41.79824217,1814.9,1814.8,5.51024]
[1743428340235,3.85524217,1814.9,1814.8,5.51024]
[1743428340403,3.85524217,1814.9,1814.7,5.51044]
[1743428340608,3.0,1814.8,1814.5,5.51094]
[1743428341200,3.85524217,1814.6,1814.1,1.63]
[1743428341401,6.85524217,1814.8,1814.5,5.51111]
[1743428341620,6.85524217,1814.8,1814.5,5.51097]
[1743428341933,3.85524217,1814.8,1814.4,5.51132]
[1743428342233,7.94731881,1814.8,1814.4,5.51132]
[1743428342449,3.85524217,1814.8,1814.7,5.51055]
[1743428342620,6.85524217,1814.8,1814.7,5.51055]
[1743428343330,3.0,1814.7,1814.6,5.51085]
[1743428343716,3.85524217,1814.8,1814.7,5.51055]
[1743428344129,6.13,1815.3,1815.2,5.50903]
[1743428344334,6.13,1815.5,1815.4,5.50842]
[1743428344543,3.0,1815.4,1815.2,5.50899]
[1743428344744,6.85524217,1815.4,1815.2,5.50899]
[1743428345061,6.13,1815.5,1815.4,5.50842]
[1743428345207,31.813,1815.6,1815.4,5.50823]
[1743428345522,3.0,1815.5,1815.4,5.50823]
[1743428346518,3.85524217,1815.7,1815.6,5.50782]
[1743428346750,3.85524217,1815.7,1815.5,5.50802]
[1743428347075,3.85524217,1815.7,1815.4,5.50842]
[1743428347219,3.85524217,1815.5,1815.1,5.50927]
[1743428347544,0.55,1815.4,1815.0,5.50963]
[1743428347706,2.0754,1815.4,1814.9,5.50994]
[1743428347912,5.0754,1815.4,1814.9,5.50994]
[1743428348106,3.85524217,1815.1,1814.9,5.50994]
[1743428348335,3.85524217,1815.1,1814.8,5.5101]
[1743428348336,3.0,1815.0,1814.8,5.5101]
[1743428348541,3.0,1815.0,1814.7,5.51035]
[1743428349112,3.0,1815.0,1814.8,5.51023]
[1743428349307,3.68552422,1815.0,1814.7,5.51055]
[1743428349730,3.0,1815.0,1814.8,5.51006]
[1743428349936,6.13,1815.3,1814.8,1.6591]
[1743428350409,6.13,1815.3,1814.8,7.16934]
[1743428350613,35.65324217,1815.4,1814.8,1.6591]
[1743428350810,3.0,1815.3,1814.8,1.6591]
[1743428351145,3.85524217,1815.1,1814.9,5.50983]
[1743428351308,3.85524217,1815.1,1814.8,5.51008]
[1743428351645,6.85524217,1815.3,1814.9,5.50965]
[1743428351945,3.85524217,1815.0,1814.6,1.5849]
[1743428352112,5.36854217,1815.0,1814.2,1.5422]
[1743428352314,3.85524217,1814.4,1813.4,1.5422]
[1743428352512,3.0,1814.0,1813.6,5.51372]
[1743428352725,3.0,1813.7,1813.4,7.05667]
[1743428352957,3.0,1813.7,1813.3,5.51461]
[1743428353150,3.85524217,1813.5,1813.1,1.5148]
[1743428353351,3.85524217,1813.5,1813.3,5.51456]
[1743428353644,3.85524217,1813.5,1813.2,5.51509]
[1743428353844,3.85524217,1813.5,1813.4,5.5145]
[1743428354012,6.13,1813.7,1813.6,5.51389]
[1743428354210,3.0,1813.7,1813.6,5.51389]
[1743428354422,14.6436,1813.7,1812.7,5.51633]
[1743428354625,6.85524217,1813.2,1813.1,5.51541]
[1743428355021,3.0,1813.1,1812.6,1.6578]
[1743428355223,6.85524217,1813.2,1812.8,5.51611]
[1743428355436,3.85524217,1813.2,1813.0,5.51566]
[1743428355639,6.85524217,1813.2,1813.0,5.5156]
[1743428355821,6.85524217,1813.2,1813.1,5.51541]
[1743428356149,6.85524217,1813.2,1813.0,11.03107]
[1743428356350,6.85524217,1813.2,1813.1,5.51541]
[1743428356551,6.85524217,1813.2,1813.0,5.51558]
[1743428356722,6.85524217,1813.2,1812.9,5.51601]
[1743428356926,14.28376639,1813.2,1812.4,5.51737]
[1743428357113,14.28376639,1813.2,1812.3,1.5387]
[1743428357114,4.5107,1812.8,1811.8,13.17716]
[1743428357317,4.5107,1812.8,1812.1,5.51845]
[1743428357318,3.0,1812.4,1812.1,5.51845]
[1743428357549,3.0,1812.4,1812.2,5.51794]
[1743428357752,3.0,1812.4,1812.3,5.51785]
[1743428358344,7.66,1812.7,1812.6,5.51693]
[1743428358550,3.0,1812.6,1812.5,5.51721]
[1743428358853,3.0,1812.7,1812.0,1.5288]
[1743428359019,3.0,1812.4,1812.3,5.51785]
[1743428359239,3.0,1812.6,1812.5,5.51719]
[1743428359441,3.0,1812.7,1812.4,11.03481]
[1743428359876,3.0,1812.7,1812.4,5.51728]
[1743428360373,3.0,1812.7,1812.3,5.51776]
[1743428360561,9.96659422,1812.7,1812.2,5.518]
[1743428360745,9.96659422,1812.7,1812.4,5.51753]
[1743428361077,9.96659422,1812.7,1812.3,11.03541]
[1743428361239,9.96659422,1812.7,1812.4,5.51745]
[1743428361444,9.96659422,1812.7,1812.4,5.51737]
[1743428362474,9.13,1812.7,1812.4,11.03469]
[1743428362677,3.85524217,1812.5,1812.2,5.51785]
[1743428362989,3.0,1812.4,1812.3,5.51785]
[1743428363177,3.0,1812.6,1812.1,5.51841]
[1743428363478,3.0,1812.6,1812.5,5.51724]
[1743428363640,5.36594217,1812.8,1812.5,5.51724]
[1743428363844,19.04754217,1813.4,1813.0,5.51565]
[1743428364079,19.04754217,1813.4,1812.6,7.11579339]
[1743428364080,19.04754217,1813.4,1813.2,5.51497]
[1743428364278,19.04754217,1813.4,1813.1,5.5154]
[1743428364279,3.0,1813.3,1813.1,5.5154]
[1743428364486,3.0,1813.3,1813.0,5.51571]
[1743428364683,3.0,1813.3,1812.7,5.51663]
[1743428364858,3.0,1813.3,1813.0,5.51565]
[1743428365065,19.04754217,1813.4,1813.0,5.51548]
[1743428365299,19.04754217,1813.4,1813.1,5.51517]
[1743428365453,3.0,1813.3,1813.1,5.51517]
[1743428365650,19.04754217,1813.4,1812.8,5.57142772]
[1743428365651,17.54524217,1813.4,1813.3,5.5148]
[1743428365965,13.69,1813.4,1813.3,5.5148]
[1743428366294,3.0,1813.3,1812.8,5.51627]
[1743428366496,3.0,1813.3,1813.0,5.51555]
[1743428366681,3.0,1813.3,1813.2,5.51511]
[1743428366849,6.13,1813.4,1813.3,5.5148]
[1743428367365,9.13,1813.4,1813.3,5.5148]
[1743428367773,3.0,1813.3,1813.2,5.51511]
[1743428368072,3.0,1813.3,1813.1,5.51541]
[1743428368273,3.0,1813.3,1813.1,5.51529]
[1743428368454,3.0,1813.3,1813.2,5.51511]
[1743428368654,3.0,1813.3,1813.1,11.0306]
[1743428368963,3.0,1813.3,1813.2,5.51511]
[1743428369155,3.0,1813.5,1813.1,5.51522]
[1743428369553,3.0,1813.5,1812.8,5.51632]
[1743428369554,3.85524217,1813.3,1812.9,5.51582]
[1743428369784,6.85524217,1813.3,1812.9,5.51581]
[1743428369953,6.85524217,1813.3,1812.6,7.06045]
[1743428369954,6.85524217,1813.3,1812.7,5.51658]
[1743428370150,3.0,1813.3,1813.1,5.51527]
[1743428370397,3.0,1813.3,1812.9,5.51602]
[1743428370553,3.68552422,1813.3,1812.8,11.03243]
[1743428370758,2.0516,1813.2,1812.8,5.51613]
[1743428370954,0.55,1812.9,1812.4,5.51741]
[1743428371178,3.0,1812.6,1812.4,5.51736]
[1743428371389,3.0,1812.6,1812.5,5.51724]
[1743428371587,3.0,1812.6,1812.3,5.51776]
[1743428371797,3.68552422,1812.6,1812.1,5.51842]
[1743428371981,3.0,1812.3,1811.1,1.5384]
[1743428372197,3.85524217,1812.4,1811.4,5.52059]
[1743428372198,8.46214217,1812.1,1811.4,5.52059]
[1743428372371,8.46214217,1812.1,1811.8,5.51916]
[1743428372573,14.59214217,1812.1,1811.7,5.51956]
[1743428372807,14.59214217,1812.1,1811.8,5.51934]
[1743428373011,14.59214217,1812.1,1811.8,11.03856]
[1743428373218,14.59214217,1812.1,1812.0,5.51876]
[1743428373219,9.13,1812.1,1812.0,5.51876]
[1743428373708,6.13,1812.1,1812.0,5.51876]
[1743428374015,3.0,1812.5,1812.4,5.51754]
[1743428374328,3.0,1812.5,1812.3,5.51785]
[1743428374536,3.0,1812.5,1812.3,5.51782]
[1743428374704,3.0,1812.5,1812.4,5.51754]
[1743428374909,3.85524217,1812.6,1812.4,5.51754]
[1743428375121,3.85524217,1812.6,1812.5,5.51724]
[1743428375633,31.824,1812.7,1812.6,5.51693]
[1743428375925,5.35744217,1813.2,1812.5,6.620718]
[1743428375926,11.48744217,1813.2,1812.5,6.620718]
[1743428376127,18.98044217,1813.2,1813.0,5.51557]
[1743428376330,3.0,1813.1,1813.0,5.51557]
[1743428376530,3.85524217,1813.2,1813.1,5.51541]
[1743428376702,3.0,1813.1,1813.0,5.51552]
[1743428377229,3.648952,1813.0,1812.6,5.51677]
[1743428377402,3.648952,1813.0,1812.7,11.03292]
[1743428377403,9.98524217,1812.9,1812.7,11.03292]
[1743428377597,9.98524217,1812.9,1812.7,5.51641]
[1743428377828,9.98524217,1812.9,1812.6,5.51691]
[1743428378054,10.468,1812.8,1812.4,5.51754]
[1743428378233,10.468,1812.8,1812.6,5.51676]
[1743428378530,3.0,1812.8,1812.6,5.51676]
[1743428378711,3.0,1812.8,1812.7,5.51663]
[1743428379435,3.85524217,1813.2,1812.9,5.51589]
[1743428379638,3.0,1813.1,1812.8,5.51627]
[1743428379812,3.0,1813.1,1812.9,5.51577]
[1743428380006,3.0,1813.1,1812.8,5.5163]
[1743428380206,9.13,1813.1,1812.7,5.51651]
[1743428380435,9.13,1813.1,1812.4,5.51747]
[1743428380643,9.13,1813.1,1812.9,5.51578]
[1743428380839,3.0,1813.1,1813.0,5.51571]
[1743428381142,4.5584,1813.3,1813.2,5.51511]
[1743428381336,3.0,1813.3,1813.1,5.51535]
[1743428381519,3.0,1813.3,1813.2,5.51511]
[1743428382042,31.83,1813.4,1813.3,5.5148]
[1743428382544,34.83,1813.4,1813.3,5.5148]
[1743428382838,3.0,1813.3,1813.2,5.51511]
[1743428383137,3.0,1813.3,1813.1,5.51541]
[1743428383508,3.0,1813.3,1813.1,11.03062]
[1743428383703,3.0,1813.3,1813.1,11.03042]
[1743428383922,3.0,1813.3,1813.1,5.51521]
[1743428384117,3.0,1813.3,1813.1,11.03048]
[1743428384327,3.0,1813.3,1813.0,11.03123]
[1743428384549,3.0,1813.3,1813.2,5.51511]
[1743428385740,6.13,1813.7,1813.6,5.51389]
[1743428385940,3.0,1813.7,1813.5,5.51416]
[1743428386334,3.0,1813.7,1813.6,5.51389]
[1743428386533,9.98524217,1814.4,1813.6,1.102805]
[1743428386732,9.98524217,1814.4,1814.1,5.51236]
[1743428386933,3.0,1814.3,1814.0,5.51238]
[1743428387129,9.98524217,1814.4,1813.8,1.6507]
[1743428387444,9.98524217,1814.4,1813.8,7.16392]
[1743428387744,3.0,1814.3,1814.1,5.51236]
[1743428388248,3.0,1814.3,1814.0,11.02502]
[1743428388547,9.98524217,1814.4,1814.0,11.02502]
[1743428388548,9.98524217,1814.4,1814.0,5.51247]
[1743428388712,3.0,1814.3,1813.9,5.51297]
[1743428388912,3.0,1814.0,1813.8,5.51325]
[1743428389125,3.68552422,1814.0,1813.7,5.51358]
[1743428389425,8.51359,1813.7,1813.2,5.51499]
[1743428389619,3.0,1813.4,1813.2,5.51495]
[1743428389844,3.0,1813.4,1813.1,5.51538]
[1743428390021,3.0,1813.4,1813.2,5.51506]
[1743428390409,3.0,1813.4,1813.2,5.51498]
[1743428390610,3.0,1813.4,1813.3,5.5148]
[1743428391220,7.3,1813.7,1813.6,5.51389]
[1743428391421,10.3,1813.7,1813.6,5.51389]
[1743428391821,3.85524217,1813.8,1813.7,5.51359]
[1743428392041,11.64754217,1814.3,1813.9,5.5127]
[1743428392345,11.64754217,1814.3,1813.6,5.51389]
[1743428392546,6.13,1814.3,1813.7,5.56872179]
[1743428392752,6.13,1814.3,1814.0,5.51246]
[1743428392753,3.0,1814.2,1814.0,5.51246]
[1743428392951,9.98524217,1814.3,1813.9,5.51295]
[1743428393251,3.85524217,1814.0,1813.8,5.51326]
[1743428393413,3.0,1813.8,1813.2,5.51508]
[1743428393618,3.85524217,1813.4,1813.2,5.51492]
[1743428393814,6.85524217,1813.4,1813.3,5.5148]
[1743428394015,6.85524217,1813.4,1813.2,5.51492]
[1743428394349,6.85524217,1813.4,1813.0,5.51556]
[1743428394350,3.0,1813.3,1813.0,5.51556]
[1743428394551,3.0,1813.3,1813.2,5.51511]
[1743428394752,3.0,1813.3,1813.0,5.51564]
[1743428395055,3.0,1813.3,1812.3,1.5004]
[1743428395056,6.85524217,1813.1,1812.3,1.5004]
[1743428395254,6.85524217,1813.1,1812.9,5.51599]
[1743428395255,12.98524217,1813.1,1812.9,5.51599]
[1743428395551,12.98524217,1813.1,1812.5,5.51717]
[1743428395759,12.98524217,1813.1,1812.7,5.51653]
[1743428395921,20.27824217,1813.1,1812.7,5.51653]
[1743428396118,3.0,1812.7,1812.3,5.51784]
[1743428396321,3.0,1812.7,1812.1,1.537]
[1743428396322,3.0,1812.4,1812.1,5.51843]
[1743428396522,3.0,1812.4,1812.1,5.51827]
[1743428396523,6.13,1812.3,1812.1,5.51827]
[1743428396722,0.55,1812.1,1811.8,5.51924]
[1743428396937,6.85524217,1812.2,1811.9,5.51891]
[1743428397136,6.85524217,1812.2,1812.0,5.5185]
[1743428397576,3.0,1811.8,1811.3,5.52073]
[1743428397762,3.0,1811.5,1811.1,5.52122]
[1743428398067,10.356,1811.5,1811.2,5.52119]
[1743428398270,10.356,1811.5,1811.1,5.52122]
[1743428398579,3.0,1811.2,1810.6,1.5106]
[1743428398738,3.85524217,1810.7,1810.4,5.52343]
[1743428398940,3.0,1810.6,1810.2,5.52422]
[1743428399135,3.0,1810.6,1810.4,0.15453473]
[1743428399339,0.55,1810.5,1810.3,0.15477979]
[1743428399560,6.13,1810.6,1810.1,0.1]
[1743428399767,3.0,1811.1,1810.4,5.52364]
[1743428399969,9.13,1811.1,1810.1,0.1]
[1743428400172,0.55,1810.7,1810.3,5.52378]
[1743428400337,3.0,1810.8,1810.7,5.52272]
[1743428400338,14.27724217,1810.8,1810.7,5.52272]
[1743428400669,14.27724217,1810.8,1810.6,5.5228]
[1743428400876,14.27724217,1810.8,1810.7,5.52272]
[1743428401167,6.85524217,1810.8,1810.7,5.52272]
[1743428401737,6.13,1811.1,1810.9,5.52207]
[1743428401738,3.0,1811.0,1810.9,5.52207]
[1743428401950,3.0,1811.0,1810.8,5.52239]
[1743428402149,3.0,1811.0,1810.8,5.52212]
[1743428402349,3.85497364,1811.0,1810.5,5.5232]
[1743428402581,3.85524217,1810.8,1810.4,5.52349]
[1743428402742,3.85524217,1810.8,1810.6,5.52299]
[1743428403081,3.85524217,1810.8,1810.4,5.52334]
[1743428403289,3.85524217,1810.8,1810.5,5.52311]
[1743428403443,0.55,1810.6,1810.5,0.12804599]
[1743428403638,22.419348,1810.6,1810.5,0.12804599]
[1743428403963,22.419348,1810.6,1810.1,0.1]
[1743428403964,3.0,1810.5,1810.1,0.1]
[1743428404148,3.0,1810.5,1810.1,5.6243]
[1743428404149,9.13,1810.5,1810.1,5.6243]
[1743428404362,0.55,1810.4,1810.1,0.1]
[1743428404569,14.65346,1810.5,1810.1,0.1]
[1743428404570,6.13,1810.3,1810.1,5.62441]
[1743428404873,3.0,1810.2,1810.1,5.62441]
[1743428405254,9.13,1810.3,1810.2,5.52425]
[1743428405460,11.61524217,1810.8,1810.6,5.52278]
[1743428405665,6.13,1810.8,1810.7,5.52272]
[1743428405865,13.583,1810.9,1810.8,5.52242]
[1743428406066,13.583,1810.9,1810.6,5.52296]
[1743428406385,13.583,1810.9,1810.7,5.5227]
[1743428406588,5.46484217,1811.1,1810.8,5.52242]
[1743428406761,6.13,1811.3,1811.2,5.5212]
[1743428406955,5.51983,1811.7,1811.1,5.52147]
[1743428406956,6.13,1811.6,1811.1,11.04294]
[1743428407161,6.13,1811.6,1811.2,5.52118]
[1743428407361,6.07063,1811.4,1810.9,5.52206]
[1743428407562,3.0,1811.4,1810.5,1.5457]
[1743428407762,3.85524217,1811.4,1811.0,5.5216]
[1743428407957,6.13,1811.3,1811.2,5.5212]
[1743428408181,6.13,1811.7,1811.6,5.51998]
[1743428408383,19.10084217,1811.8,1811.2,5.5212]
[1743428408573,19.10084217,1811.8,1811.6,5.51997]
[1743428408755,19.10084217,1811.8,1811.6,5.51979]
[1743428408956,5.51663,1812.7,1811.7,1.5838]
[1743428409312,5.51663,1812.7,1811.7,5.51952]
[1743428409313,3.0,1812.4,1811.7,5.51952]
[1743428409532,3.0,1812.4,1812.1,5.51839]
[1743428409682,3.0,1812.2,1812.0,11.0371]
[1743428409881,6.43,1812.3,1812.1,5.51819]
[1743428410217,3.0,1812.2,1812.0,5.51852]
[1743428410417,3.0,1812.2,1812.0,11.03708]
[1743428410630,3.0,1812.2,1812.0,5.51852]
[1743428411010,3.0,1812.2,1812.1,5.51845]
[1743428411528,3.0,1812.2,1811.9,5.51906]
[1743428411733,0.3,1812.1,1812.0,5.51876]
[1743428412015,8.40864217,1812.2,1811.9,11.03812]
[1743428412219,4.5534,1812.2,1812.0,5.51873]
[1743428412515,6.13,1812.3,1812.2,5.51815]
[1743428412913,3.0,1812.3,1812.2,5.51815]
[1743428413279,5.178827,1812.2,1811.9,5.51885]
[1743428413615,3.55,1812.4,1812.0,5.51862]
[1743428413805,0.355,1812.3,1811.7,7.15876]
[1743428413986,3.55,1812.4,1811.7,7.15876]
[1743428413987,3.0,1812.4,1812.2,5.51815]
[1743428414188,3.0,1812.4,1812.1,5.51844]
[1743428414513,3.0,1812.4,1812.1,5.51825]
[1743428414811,6.13,1812.5,1811.9,5.51905]
[1743428415013,6.13,1812.5,1812.2,5.51787]
[1743428415181,6.13,1812.5,1812.3,5.51774]
[1743428415895,12.42314,1812.5,1812.0,5.51858]
[1743428416094,0.55,1812.4,1812.0,5.51858]
[1743428416295,9.68,1812.4,1811.8,5.51937]
[1743428416612,9.68,1812.4,1811.7,1.6391]
[1743428416613,15.19769,1812.4,1812.0,5.51875]
[1743428416810,1.519769,1812.3,1812.0,5.51875]
[1743428417015,9.13,1812.4,1812.1,5.51833]
[1743428417218,9.13,1812.4,1812.2,5.51803]
[1743428417415,9.13,1812.4,1812.3,5.51785]
[1743428417416,6.13,1812.4,1812.3,5.51785]
[1743428417588,3.0,1812.3,1812.2,5.51803]
[1743428417916,4.0302,1812.2,1812.0,5.51872]
[1743428418213,3.0,1812.3,1812.1,5.51845]
[1743428418411,3.0,1812.3,1812.2,5.51815]
[1743428418714,3.0,1812.3,1812.1,5.51828]
[1743428418921,5.51912,1811.9,1811.3,1.6561]
[1743428419083,5.51912,1811.9,1811.4,5.52033]
[1743428419084,3.0,1811.8,1811.4,5.52033]
[1743428419283,9.13,1811.8,1811.5,5.52013]
[1743428419917,9.13,1811.8,1811.0,1.6561]
[1743428420092,9.13,1811.8,1811.6,5.51969]
[1743428420283,9.13,1811.8,1811.7,5.51967]
[1743428420815,9.1167,1812.2,1812.0,5.5185]
[1743428421118,7.483,1812.2,1812.0,5.5185]
[1743428421316,3.0,1812.1,1812.0,5.51856]
[1743428421494,3.0,1812.1,1812.0,11.03712]
[1743428421698,3.0,1812.1,1811.6,1.5333]
[1743428421916,3.0,1812.1,1811.9,5.51893]
[1743428422122,3.0,1812.1,1812.0,5.51876]
[1743428422534,3.0,1812.1,1811.9,5.51893]
[1743428422737,3.0,1812.1,1811.8,5.51927]
[1743428423046,3.0,1812.1,1812.0,5.51876]
[1743428423543,3.0,1812.1,1811.9,5.51889]
[1743428423544,3.0,1812.1,1811.8,5.51922]
[1743428423725,4.0483,1812.1,1811.8,5.51922]
[1743428423897,3.0,1812.1,1811.6,1.5333]
[1743428424106,3.0,1812.1,1811.9,11.03782]
[1743428424304,3.0,1812.1,1811.8,5.51926]
[1743428424518,3.0,1812.1,1811.8,5.51922]
[1743428424729,3.0,1812.1,1811.9,5.51893]
[1743428425255,21.0917,1811.6,1811.1,5.52138]
[1743428425421,9.13,1811.6,1811.3,5.52086]
[1743428425745,9.13,1811.6,1811.1,5.52133]
[1743428425746,9.13,1811.6,1811.2,5.52111]
[1743428425946,9.13,1811.6,1811.4,5.52035]
[1743428426151,31.847,1811.9,1811.4,6.624473]
[1743428426458,3.0,1811.8,1811.7,5.51967]
[1743428427251,31.847,1811.9,1811.8,5.51937]
[1743428427552,34.847,1811.9,1811.8,5.51937]
[1743428428049,34.847,1811.9,1811.7,5.51952]
[1743428428442,34.847,1811.9,1811.8,5.51937]
[1743428429718,6.13,1812.5,1812.3,5.51782]
[1743428429920,37.978,1812.6,1812.3,11.0355]
[1743428430227,37.978,1812.6,1812.3,5.51774]
[1743428430540,31.848,1812.6,1812.4,5.5174]
[1743428430743,6.13,1812.9,1812.8,5.51632]
[1743428430943,3.0,1813.0,1812.9,5.51586]
[1743428431260,13.482,1813.1,1812.9,5.51586]
[1743428431425,3.0,1813.0,1812.9,5.51586]
[1743428431619,3.0,1813.0,1812.2,1.5138]
[1743428431822,10.16804,1812.8,1812.3,11.03552]
[1743428432019,10.16804,1812.8,1812.2,1.5138]
[1743428432020,10.16793,1812.8,1812.4,5.51749]
[1743428432219,3.0,1812.7,1812.4,5.51749]
[1743428432454,0.3,1812.6,1812.3,11.03551]
[1743428432653,0.3,1812.6,1812.4,5.51751]
[1743428432852,0.3,1812.6,1812.3,5.51784]
[1743428432853,4.6516,1812.8,1812.3,5.51781]
[1743428433063,4.6516,1812.8,1812.1,5.51843]
[1743428433064,3.0,1812.5,1812.1,11.03661]
[1743428433227,3.0,1812.5,1812.2,5.518]
[1743428433422,3.0,1812.5,1812.2,5.72350238]
[1743428433765,8.51734,1812.5,1812.2,0.20554238]
[1743428433919,0.851734,1812.4,1812.2,5.72353238]
[1743428434126,3.0,1812.5,1812.2,0.20554238]
[1743428434328,3.0,1812.3,1812.2,0.20554238]
[1743428434623,3.0,1812.3,1811.6,1.5685]
[1743428434624,5.724172,1812.0,1811.4,5.52036]
[1743428434825,3.0,1811.8,1811.6,5.51979]
[1743428435144,3.0,1811.8,1811.6,11.03964]
[1743428435334,3.0,1811.8,1811.7,5.72776707]
[1743428435526,3.0,1811.8,1811.7,0.20809707]
[1743428435830,3.0,1811.8,1811.7,5.51967]
[1743428436026,3.0,1811.8,1811.6,5.51979]
[1743428436222,6.267489,1811.5,1810.8,1.6353]
[1743428436453,3.0,1811.1,1810.6,5.5228]
[1743428436627,14.65153,1811.1,1810.6,5.5228]
[1743428436827,3.0,1810.9,1810.6,5.5228]
[1743428437028,10.321,1810.9,1810.6,5.523]
[1743428437229,11.4081,1810.9,1810.6,5.523]
[1743428437624,11.4081,1810.9,1810.7,5.5227]